bitfinex/quotes_SOLUSD_20241117
["timestamp","ask_amount","ask_price","bid_price","bid_amount"]
[1731819685767,46.17411375,235.53,235.43,46.17411375]
[1731819685951,1.2733,235.59,235.43,46.17411375]
[1731819686266,46.17411375,235.59,235.49,46.17411375]
[1731819686463,46.17411375,235.57,235.47,46.17411375]
[1731819687159,46.17411375,235.59,235.47,46.17411375]
[1731819687365,46.17411375,235.59,235.49,46.17411375]
[1731819687660,46.17411375,235.57,235.47,46.17411375]
[1731819687845,46.17411375,235.55,235.45,46.17411375]
[1731819688253,46.17411375,235.51,235.41,46.17411375]
[1731819688461,46.17411375,235.49,235.39,46.17411375]
[1731819688668,46.17411375,235.51,235.41,46.17411375]
[1731819688872,1.2738,235.5,235.39,46.17411375]
[1731819689546,1.2738,235.5,235.41,46.17411375]
[1731819689864,46.17411375,235.49,235.39,46.17411375]
[1731819690045,1.2739,235.5,235.41,46.17411375]
[1731819690240,0.07721291,235.42,235.37,46.17411375]
[1731819690549,45.99119568,235.49,235.39,46.17411375]
[1731819690958,0.07830703,235.49,235.43,46.17411375]
[1731819691351,0.07830703,235.49,235.45,46.17411375]
[1731819693175,0.07830703,235.49,235.47,46.17411375]
[1731819694672,0.07830703,235.49,235.48,4.2466]
[1731819694850,0.5378975,235.64,235.54,0.1]
[1731819695170,0.5378975,235.64,235.63,46.17411375]
[1731819696651,0.5378975,235.64,235.61,46.17411375]
[1731819696944,0.5378975,235.64,235.63,46.17411375]
[1731819698149,0.5378975,235.64,235.63,50.41801375]
[1731819699367,0.1,235.81,235.63,50.41801375]
[1731819699368,46.17411375,235.89,235.69,0.09367462]
[1731819699557,46.17411375,235.89,235.78,46.17411375]
[1731819699764,46.17411375,235.87,235.76,46.17411375]
[1731819700244,46.17411375,235.79,235.63,36.0734]
[1731819700446,46.17411375,235.83,235.71,46.17411375]
[1731819700677,46.17411375,235.83,235.73,46.17411375]
[1731819701244,53.88441375,235.9,235.71,4.2423]
[1731819701245,46.17411375,235.79,235.71,4.2423]
[1731819701679,1.3518,235.88,235.71,4.2423]
[1731819701852,1.2718,235.88,235.71,50.41641375]
[1731819702053,46.17411375,235.81,235.71,4.2423]
[1731819702869,46.17411375,235.75,235.64,46.17411375]
[1731819703046,46.17411375,235.75,235.65,14.8523]
[1731819703365,46.17411375,235.77,235.66,46.17411375]
[1731819704181,46.17411375,235.79,235.68,46.17411375]
[1731819704769,46.17411375,235.69,235.55,4.2453]
[1731819704949,46.17411375,235.66,235.55,14.8587]
[1731819705150,46.17411375,235.66,235.56,46.17411375]
[1731819705768,46.17411375,235.64,235.55,14.8587]
[1731819705956,46.17411375,235.64,235.55,10.6134]
[1731819706357,32.5798,235.74,235.55,10.6134]
[1731819706551,46.17411375,235.62,235.51,16.9857]
[1731819706757,46.17411375,235.64,235.52,46.17411375]
[1731819706957,46.17411375,235.62,235.52,46.17411375]
[1731819707578,46.17411375,235.68,235.58,46.17411375]
[1731819707772,46.17411375,235.68,235.56,46.17411375]
[1731819708076,46.17411375,235.66,235.56,46.17411375]
[1731819708274,47.44711375,235.66,235.57,4.245]
[1731819709263,46.17411375,235.7,235.6,46.17411375]
[1731819709685,46.17411375,235.68,235.58,46.17411375]
[1731819709984,46.17411375,235.62,235.55,4.2453]
[1731819710181,0.08215696,235.59,235.52,46.17411375]
[1731819710483,0.08215696,235.59,235.53,4.2456]
[1731819710664,0.08215696,235.59,235.54,46.17411375]
[1731819710975,0.08215696,235.59,235.58,46.17411375]
[1731819711179,0.08215696,235.59,235.56,46.17411375]
[1731819711361,0.08215696,235.59,235.56,50.41921375]
[1731819711879,0.08215696,235.59,235.56,4.2451]
[1731819712078,0.08215696,235.59,235.56,50.41921375]
[1731819712383,0.08215696,235.59,235.56,61.03221375]
[1731819712570,0.08215696,235.59,235.56,14.8581]
[1731819713078,0.08215696,235.59,235.56,10.613]
[1731819713962,0.08215696,235.59,235.56,56.78711375]
[1731819714158,0.08215696,235.59,235.58,46.17411375]
[1731819714371,0.08215696,235.59,235.56,56.78711375]
[1731819714693,0.08215696,235.59,235.56,10.613]
[1731819715568,0.08215696,235.59,235.53,4.2456]
[1731819715762,0.08215696,235.59,235.51,4.246]
[1731819716181,0.08215696,235.59,235.52,46.17411375]
[1731819716480,0.08215696,235.59,235.54,46.17411375]
[1731819716855,0.08215696,235.59,235.52,46.17411375]
[1731819717860,0.08215696,235.59,235.52,50.41991375]
[1731819718261,0.08215696,235.59,235.52,61.03471375]
[1731819718461,0.08215696,235.59,235.52,14.8606]
[1731819718678,0.08215696,235.59,235.52,61.03471375]
[1731819719084,0.08215696,235.59,235.54,46.17411375]
[1731819719581,0.08215696,235.59,235.52,61.03471375]
[1731819719779,0.08215696,235.59,235.52,14.8606]
[1731819720476,0.08215696,235.59,235.52,61.03471375]
[1731819720660,0.08215696,235.59,235.52,14.8606]
[1731819720870,0.08215696,235.59,235.57,28.2349202]
[1731819721577,0.08215696,235.59,235.52,14.8606]
[1731819721878,0.08215696,235.59,235.53,28.2349202]
[1731819722884,0.08215696,235.59,235.54,4.2455]
[1731819723859,0.08215696,235.59,235.52,14.8606]
[1731819724107,0.08215696,235.59,235.54,28.2349202]
[1731819724981,0.08215696,235.59,235.55,14.8587]
[1731819725191,0.08215696,235.59,235.56,28.2349202]
[1731819725561,0.08215696,235.59,235.55,14.8587]
[1731819726283,0.08215696,235.59,235.55,10.6134]
[1731819728857,0.08215696,235.59,235.51,4.246]
[1731819729379,0.08215696,235.59,235.52,28.2349202]
[1731819730162,0.08581669,235.53,235.52,32.4808202]
[1731819732283,0.08581669,235.53,235.52,39.93998683]
[1731819732766,0.08581669,235.53,235.52,39.83998683]
[1731819733095,0.08581669,235.53,235.52,33.67439243]
[1731819733966,0.00391101,235.59,235.58,0.19367462]
[1731819734165,0.00391101,235.59,235.58,28.67957482]
[1731819734360,0.00391101,235.59,235.58,28.32859482]
[1731819734578,0.00391101,235.59,235.57,28.2349202]
[1731819734980,32.5798,235.74,235.57,28.2349202]
[1731819734981,0.07152751,235.6,235.59,0.31916462]
[1731819735282,0.08,235.82,235.64,0.21916462]
[1731819735283,30.116,235.82,235.64,0.21916462]
[1731819735474,30.116,235.82,235.75,28.2349202]
[1731819736069,30.116,235.82,235.73,28.2349202]
[1731819736268,30.116,235.82,235.73,32.4769202]
[1731819736702,30.116,235.82,235.75,28.2349202]
[1731819737288,30.116,235.82,235.77,28.2349202]
[1731819737467,1.2719,235.86,235.77,28.2349202]
[1731819737897,30.116,235.9,235.73,14.8473]
[1731819737898,1.2721,235.82,235.73,43.0822202]
[1731819738187,1.2721,235.83,235.73,14.8474]
[1731819738366,1.2721,235.83,235.73,43.0823202]
[1731819738573,30.216,235.9,235.73,43.0823202]
[1731819738574,1.272,235.85,235.75,28.2349202]
[1731819738781,28.2349202,235.86,235.75,28.2349202]
[1731819738990,28.2349202,235.86,235.77,28.2349202]
[1731819739471,1.2718,235.88,235.77,28.2349202]
[1731819739670,58.3509202,235.9,235.77,28.2349202]
[1731819739969,59.6226202,235.9,235.78,4.2412]
[1731819740179,30.116,235.9,235.78,4.2412]
[1731819740569,58.3509202,235.9,235.78,4.2412]
[1731819741091,30.116,235.9,235.78,4.33487462]
[1731819741412,12.3279,235.99,235.78,4.33487462]
[1731819741413,6.55492529,236.14,235.97,12.6788]
[1731819741689,12.7896172,236.25,236.05,28.2349202]
[1731819741866,12.7896172,236.25,236.15,28.2349202]
[1731819742068,0.4617172,236.25,236.13,0.21916462]
[1731819742297,0.4617172,236.25,236.11,23.776884]
[1731819742298,0.4617172,236.25,236.21,0.09367462]
[1731819742470,49.49194077,236.6,236.31,0.2]
[1731819742676,28.2349202,236.51,236.39,28.2349202]
[1731819742877,45.57376919,236.5,236.38,45.57376919]
[1731819743199,8.49025757,236.53,236.44,45.57376919]
[1731819743376,45.57376919,236.62,236.5,45.57376919]
[1731819743689,21.08100895,236.68,236.48,45.57376919]
[1731819743690,45.57376919,236.6,236.48,45.57376919]
[1731819744087,1.268,236.59,236.52,45.57376919]
[1731819744395,46.84136919,236.66,236.55,0.1]
[1731819744598,46.84136919,236.66,236.54,45.57376919]
[1731819744774,46.84136919,236.66,236.5,45.57376919]
[1731819744775,45.57376919,236.6,236.5,45.57376919]
[1731819745086,45.57376919,236.6,236.48,45.57376919]
[1731819745286,45.57376919,236.62,236.51,45.67376919]
[1731819745487,45.57376919,236.59,236.53,0.1]
[1731819745690,1.2676,236.66,236.56,0.1]
[1731819745890,45.57376919,236.64,236.53,45.67376919]
[1731819746197,45.57376919,236.66,236.6,0.1]
[1731819746495,45.57376919,236.66,236.56,0.1]
[1731819746702,45.57376919,236.66,236.55,45.57376919]
[1731819746873,45.57376919,236.68,236.56,45.67376919]
[1731819747068,1.2675,236.69,236.56,0.1]
[1731819747069,45.57376919,236.65,236.56,0.1]
[1731819747498,45.57376919,236.67,236.56,45.67376919]
[1731819747803,45.57376919,236.69,236.63,0.1]
[1731819747975,1.2674,236.7,236.63,0.1]
[1731819748173,12.3279,236.72,236.67,45.67376919]
[1731819748380,45.57376919,236.72,236.61,45.57376919]
[1731819748586,31.3833,236.73,236.58,0.2]
[1731819748778,31.3833,236.73,236.61,0.1]
[1731819748779,45.57376919,236.7,236.61,0.1]
[1731819748989,45.57376919,236.71,236.57,0.1]
[1731819749188,1.2673,236.73,236.61,0.1]
[1731819749494,45.57376919,236.71,236.6,0.1]
[1731819749698,45.57376919,236.71,236.62,0.1]
[1731819749876,45.57376919,236.71,236.61,45.57376919]
[1731819750079,45.57376919,236.71,236.59,45.67376919]
[1731819750295,0.08847566,236.63,236.57,0.1]
[1731819750601,0.08847566,236.63,236.56,0.1]
[1731819750785,45.66224485,236.63,236.51,0.1]
[1731819751103,45.57376919,236.54,236.43,0.1]
[1731819751305,45.57376919,236.52,236.42,45.57376919]
[1731819751514,45.57376919,236.46,236.38,0.1]
[1731819751801,45.57376919,236.42,236.33,0.1]
[1731819752106,0.09367462,236.58,236.18,0.2]
[1731819752107,45.57376919,236.38,236.29,0.1]
[1731819752406,69.35065319,236.36,236.26,45.57376919]
[1731819752588,69.35065319,236.36,236.23,0.1]
[1731819752589,45.57376919,236.32,236.23,0.1]
[1731819752778,45.57376919,236.3,236.22,0.1]
[1731819753087,20.0,236.35,236.2,45.57376919]
[1731819753088,45.57376919,236.28,236.2,0.1]
[1731819753274,45.57376919,236.3,236.23,0.1]
[1731819753895,45.57376919,236.3,236.23,0.2]
[1731819754123,45.57376919,236.34,236.28,0.1]
[1731819754297,3.1722,236.43,236.25,0.1]
[1731819754298,45.57376919,236.32,236.25,0.1]
[1731819754681,1.2695,236.31,236.25,0.1]
[1731819755099,46.84306919,236.34,236.28,0.1]
[1731819755302,45.57376919,236.34,236.26,0.1]
[1731819755607,45.57376919,236.41,236.34,0.1]
[1731819755789,46.84236919,236.47,236.38,0.1]
[1731819756099,1.2686,236.47,236.32,0.1]
[1731819756318,1.2686,236.47,236.38,0.1]
[1731819757082,45.57376919,236.42,236.34,0.1]
[1731819757296,45.57376919,236.46,236.36,45.67376919]
[1731819757699,1.2686,236.47,236.38,45.57376919]
[1731819757899,45.57376919,236.44,236.35,0.1]
[1731819758118,45.57376919,236.46,236.37,0.1]
[1731819758481,45.57376919,236.44,236.37,0.1]
[1731819758685,45.57376919,236.44,236.34,0.1]
[1731819759204,45.57376919,236.44,236.37,0.1]
[1731819759713,1.2688,236.43,236.37,0.1]
[1731819760084,1.2688,236.43,236.33,45.77376919]
[1731819760291,1.2687,236.46,236.41,0.1]
[1731819760590,22.428,236.59,236.32,45.57376919]
[1731819760591,12.9177,236.59,236.5,0.1]
[1731819760790,1.268,236.59,236.5,45.67376919]
[1731819761104,1.268,236.59,236.41,0.1]
[1731819761105,19.11741967,236.59,236.41,0.1]
[1731819761278,10.778,236.59,236.41,0.1]
[1731819762101,45.57376919,236.49,236.43,0.1]
[1731819762307,1.268,236.59,236.46,0.1]
[1731819762503,45.57376919,236.57,236.48,0.1]
[1731819762714,45.57376919,236.53,236.46,0.1]
[1731819763003,45.57376919,236.57,236.5,0.2]
[1731819763187,46.84166919,236.61,236.52,0.1]
[1731819763393,45.57376919,236.59,236.52,0.1]
[1731819763588,45.57376919,236.55,236.47,0.1]
[1731819764002,45.57376919,236.53,236.44,0.1]
[1731819764511,45.57376919,236.51,236.41,0.2]
[1731819764685,45.57376919,236.53,236.46,0.1]
[1731819764880,43.776884,236.59,236.46,0.1]
[1731819765086,45.57376919,236.55,236.48,0.1]
[1731819765611,45.57376919,236.51,236.45,0.1]
[1731819765911,1.2679,236.61,236.48,0.1]
[1731819766088,45.57376919,236.55,236.48,0.1]
[1731819766487,45.57376919,236.55,236.49,0.1]
[1731819767405,45.57376919,236.5,236.44,0.1]
[1731819767603,45.57376919,236.6,236.38,0.1]
[1731819767604,45.57376919,236.45,236.38,0.1]
[1731819767807,45.57376919,236.49,236.44,0.1]
[1731819768101,45.57376919,236.53,236.46,0.1]
[1731819768302,10.7771,236.61,236.42,0.1]
[1731819768303,45.57376919,236.48,236.42,0.1]
[1731819768705,45.57376919,236.48,236.43,0.1]
[1731819768911,45.57376919,236.48,236.42,0.1]
[1731819769208,45.57376919,236.5,236.43,0.1]
[1731819769386,19.12441099,236.61,236.43,0.1]
[1731819769387,17.85651099,236.61,236.43,0.1]
[1731819769586,45.57376919,236.52,236.42,45.57376919]
[1731819769786,70.86953319,236.6,236.32,45.57376919]
[1731819769787,45.57376919,236.46,236.39,0.1]
[1731819770006,45.57376919,236.44,236.39,0.1]
[1731819770310,0.08648611,236.48,236.42,45.67376919]
[1731819770487,0.08648611,236.48,236.42,0.1]
[1731819770807,0.08648611,236.48,236.43,45.57376919]
[1731819770985,0.08648611,236.48,236.43,45.67376919]
[1731819771186,0.08648611,236.48,236.34,14.809]
[1731819771187,0.08648611,236.48,236.4,0.1]
[1731819771392,45.57376919,236.47,236.4,0.1]
[1731819771604,23.776884,236.46,236.4,0.1]
[1731819771819,0.08648611,236.48,236.43,0.1]
[1731819771986,0.08648611,236.48,236.41,45.67376919]
[1731819772188,0.08648611,236.48,236.44,0.1]
[1731819772606,0.08648611,236.48,236.43,45.57376919]
[1731819772797,0.08648611,236.48,236.4,0.1]
[1731819773605,46.84236919,236.47,236.4,0.1]
[1731819773991,23.776884,236.46,236.4,0.1]
[1731819774504,0.08648611,236.48,236.42,0.1]
[1731819774688,70.7057393,236.48,236.4,0.1]
[1731819775783,45.57376919,236.46,236.4,0.1]
[1731819775981,45.57376919,236.46,236.39,0.1]
[1731819776488,23.776884,236.46,236.39,0.1]
[1731819776689,20.0,236.47,236.39,0.1]
[1731819776985,69.35065319,236.46,236.39,0.1]
[1731819777213,23.776884,236.43,236.33,45.57376919]
[1731819777506,20.0,236.47,236.33,45.57376919]
[1731819777507,28.35802689,236.47,236.35,45.67376919]
[1731819777706,0.08648611,236.48,236.41,45.67376919]
[1731819778907,0.08648611,236.48,236.46,0.1]
[1731819779207,0.08648611,236.48,236.43,45.67376919]
[1731819779208,0.08648611,236.48,236.45,0.1]
[1731819779409,0.08648611,236.48,236.46,0.1]
[1731819779709,0.08648611,236.48,236.47,45.67376919]
[1731819780086,0.08648611,236.48,236.47,50.22173381]
[1731819780286,45.57376919,236.7,236.59,0.1]
[1731819780501,1.2673,236.71,236.61,45.57376919]
[1731819780715,45.57376919,236.68,236.59,0.1]
[1731819781014,45.57376919,236.71,236.61,45.57376919]
[1731819781307,45.57376919,236.74,236.64,45.77376919]
[1731819781613,45.57376919,236.74,236.64,0.1]
[1731819781783,1.2671,236.75,236.64,0.2]
[1731819781986,45.57376919,236.74,236.66,0.1]
[1731819782188,45.57376919,236.78,236.69,0.2]
[1731819782402,45.57376919,236.84,236.72,0.1]
[1731819782605,45.57376919,236.84,236.77,0.1]
[1731819782809,45.57376919,236.84,236.74,0.1]
[1731819783019,46.84046919,236.82,236.74,0.1]
[1731819783215,46.84046919,236.82,236.72,0.1]
[1731819783403,3.1653,236.95,236.77,0.1]
[1731819783712,46.84026919,236.86,236.77,0.1]
[1731819783894,45.57376919,236.84,236.77,0.1]
[1731819784212,12.5539,236.97,236.8,0.1]
[1731819784504,45.57376919,236.89,236.8,0.1]
[1731819785403,45.57376919,236.89,236.8,0.2]
[1731819785709,45.57376919,236.87,236.8,0.2]
[1731819786020,45.57376919,236.89,236.8,0.2]
[1731819786308,45.57376919,236.96,236.8,49.99666919]
[1731819786492,45.57376919,236.94,236.8,49.99666919]
[1731819786814,45.57376919,236.94,236.8,4.4229]
[1731819787004,2.1,237.0,236.99,0.1]
[1731819787310,2.1,237.0,236.92,0.06847214]
[1731819787487,2.1,237.0,236.94,45.64224133]
[1731819787896,2.1,237.0,236.99,0.06847214]
[1731819788091,1.2649,237.16,237.08,0.06847214]
[1731819788300,8.29059208,237.15,237.08,45.64224133]
[1731819788498,8.29059208,237.15,237.11,0.06847214]
[1731819788708,8.29059208,237.15,237.12,45.57376919]
[1731819788895,45.57376919,237.21,237.1,0.06847214]
[1731819789089,1.2647,237.2,237.11,45.57376919]
[1731819789291,1.2646,237.23,237.12,0.06847214]
[1731819789513,45.57376919,237.22,237.12,0.06847214]
[1731819789721,45.57376919,237.16,237.1,0.06847214]
[1731819790006,45.57376919,237.14,237.1,0.06847214]
[1731819790205,1.2649,237.17,237.02,30.64224133]
[1731819790392,1.2648,237.18,237.02,45.40884133]
[1731819790589,1.2651,237.12,237.02,45.57376919]
[1731819790791,1.2651,237.12,236.96,4.2199]
[1731819790792,45.57376919,237.07,236.96,45.57376919]
[1731819791006,45.57376919,237.09,236.96,45.57376919]
[1731819791288,45.57376919,237.1,236.99,45.57376919]
[1731819791589,0.6295727,237.13,237.02,45.57376919]
[1731819791789,45.57376919,237.08,236.94,10.5507]
[1731819792006,45.57376919,237.08,236.97,45.57376919]
[1731819792211,46.20334189,237.13,237.0,45.57376919]
[1731819792418,46.20334189,237.13,237.01,45.57376919]
[1731819792588,0.6295727,237.13,237.05,45.57376919]
[1731819792990,0.6295727,237.13,236.97,14.7696]
[1731819792991,0.6295727,237.13,237.03,45.57376919]
[1731819793716,0.6295727,237.13,236.97,14.7696]
[1731819793717,46.20334189,237.13,237.02,45.57376919]
[1731819794012,46.20334189,237.13,236.97,10.5498]
[1731819794013,45.57376919,237.09,236.98,45.57376919]
[1731819794308,45.57376919,237.09,236.88,45.67376919]
[1731819794309,45.57376919,237.07,236.96,45.57376919]
[1731819794605,0.31916462,237.03,236.79,12.5243]
[1731819794808,0.09367462,236.98,236.71,0.1]
[1731819795109,20.0,236.93,236.71,0.1]
[1731819795313,20.0,236.93,236.69,12.5243]
[1731819795493,45.57376919,236.87,236.76,45.57376919]
[1731819795812,20.0,236.86,236.76,45.57376919]
[1731819796112,45.57376919,236.81,236.71,45.57376919]
[1731819796413,45.57376919,236.8,236.7,45.57376919]
[1731819796788,45.57376919,236.78,236.68,45.57376919]
[1731819797006,45.57376919,236.74,236.64,45.57376919]
[1731819797311,0.09367462,236.87,236.66,45.57376919]
[1731819797312,45.57376919,236.76,236.66,45.57376919]
[1731819797502,45.57376919,236.74,236.64,45.57376919]
[1731819797708,45.57376919,236.72,236.62,45.57376919]
[1731819798094,45.57376919,236.74,236.62,45.57376919]
[1731819798415,45.57376919,236.7,236.6,45.57376919]
[1731819798888,45.57376919,236.64,236.55,45.57376919]
[1731819799093,45.57376919,236.64,236.49,12.5243]
[1731819799094,45.57376919,236.64,236.53,45.57376919]
[1731819799288,45.57376919,236.74,236.49,45.57376919]
[1731819799289,45.57376919,236.6,236.49,45.57376919]
[1731819799709,45.57376919,236.56,236.47,45.57376919]
[1731819799908,45.57376919,236.54,236.45,45.57376919]
[1731819800210,45.57376919,236.54,236.43,45.57376919]
[1731819800412,45.57376919,236.52,236.41,45.57376919]
[1731819801010,45.57376919,236.5,236.39,45.57376919]
[1731819801209,45.57376919,236.5,236.41,45.57376919]
[1731819801890,45.57376919,236.5,236.39,45.57376919]
[1731819802490,45.57376919,236.48,236.37,45.57376919]
[1731819802888,45.57376919,236.46,236.37,45.57376919]
[1731819803091,45.57376919,236.4,236.3,45.57376919]
[1731819803392,45.57376919,236.44,236.34,45.57376919]
[1731819803591,45.57376919,236.42,236.34,45.57376919]
[1731819803810,1.2685,236.49,236.32,45.57376919]
[1731819803811,45.57376919,236.4,236.32,45.57376919]
[1731819804010,45.57376919,236.36,236.28,45.57376919]
[1731819804321,24.027864,236.51,236.33,45.57376919]
[1731819804495,45.57376919,236.4,236.29,45.57376919]
[1731819804992,45.57376919,236.4,236.31,45.57376919]
[1731819805200,45.57376919,236.4,236.31,45.83291079]
[1731819805400,45.57376919,236.38,236.31,0.2591416]
[1731819805590,45.57376919,236.36,236.31,0.2591416]
[1731819805787,45.57376919,236.38,236.31,0.2591416]
[1731819806011,45.57376919,236.4,236.31,45.83291079]
[1731819806315,45.57376919,236.4,236.31,0.2591416]
[1731819806500,1.2687,236.45,236.31,45.83291079]
[1731819806701,45.57376919,236.38,236.31,0.2591416]
[1731819806898,45.57376919,236.36,236.31,0.2591416]
[1731819807100,45.57376919,236.38,236.31,0.2591416]
[1731819807499,1.2687,236.45,236.31,0.2591416]
[1731819807703,45.57376919,236.4,236.31,0.2591416]
[1731819808121,45.57376919,236.38,236.31,0.2591416]
[1731819808799,45.57376919,236.36,236.31,0.2591416]
[1731819809130,45.57376919,236.42,236.31,45.83291079]
[1731819809322,45.57376919,236.42,236.33,45.57376919]
[1731819809509,45.57376919,236.35,236.31,0.2591416]
[1731819809695,45.57376919,236.32,236.31,0.2591416]
[1731819810220,46.84316919,236.32,236.31,0.2020816]
[1731819810521,136.44480238,236.32,236.31,0.2020816]
[1731819810705,46.84316919,236.32,236.31,0.2020816]
[1731819811620,1.2694,236.32,236.31,0.2020816]
[1731819811791,1.2694,236.32,236.21,45.57376919]
[1731819811792,46.84316919,236.32,236.21,45.57376919]
[1731819811996,45.57376919,236.28,236.19,45.57376919]
[1731819812190,45.57376919,236.28,236.17,45.57376919]
[1731819812390,45.57376919,236.3,236.19,45.57376919]
[1731819812613,45.57376919,236.3,236.21,45.57376919]
[1731819812817,45.57376919,236.33,236.24,45.57376919]
[1731819813014,45.57376919,236.35,236.26,45.57376919]
[1731819813502,1.2691,236.38,236.24,45.57376919]
[1731819813503,45.57376919,236.33,236.24,45.57376919]
[1731819813704,45.57376919,236.35,236.24,45.57376919]
[1731819814006,45.57376919,236.35,236.18,0.1]
[1731819814007,45.57376919,236.31,236.22,45.57376919]
[1731819814206,4.4413,236.41,236.18,4.2339]
[1731819814207,45.57376919,236.27,236.18,45.57376919]
[1731819814597,45.57376919,236.28,236.18,45.57376919]
[1731819814794,45.57376919,236.28,236.1,0.1]
[1731819814795,45.57376919,236.26,236.16,45.57376919]
[1731819815506,23.776884,236.4,236.21,45.57376919]
[1731819815711,45.57376919,236.32,236.21,45.57376919]
[1731819816011,45.57376919,236.3,236.21,49.80716919]
[1731819816421,45.57376919,236.3,236.21,45.57376919]
[1731819816625,45.57376919,236.32,236.24,45.57376919]
[1731819816794,45.57376919,236.34,236.24,45.57376919]
[1731819816996,45.57376919,236.32,236.24,45.57376919]
[1731819817197,45.57376919,236.32,236.22,56.15706919]
[1731819817518,45.57376919,236.32,236.22,45.57376919]
[1731819817819,45.57376919,236.34,236.24,45.57376919]
[1731819818805,45.57376919,236.32,236.22,45.57376919]
[1731819819919,45.57376919,236.32,236.23,4.2331]
[1731819820220,45.57376919,236.3,236.2,45.57376919]
[1731819820428,45.57376919,236.28,236.18,45.57376919]
[1731819820720,45.57376919,236.26,236.16,60.39416919]
[1731819820920,45.57376919,236.24,236.14,45.57376919]
[1731819821131,45.57376919,236.22,236.13,4.2348]
[1731819821304,45.57376919,236.3,236.21,45.57376919]
[1731819821501,45.57376919,236.28,236.19,45.57376919]
[1731819821822,45.57376919,236.28,236.17,45.57376919]
[1731819822322,45.57376919,236.26,236.17,45.57376919]
[1731819822622,1.2697,236.28,236.13,56.16106919]
[1731819822623,45.57376919,236.22,236.13,56.16106919]
[1731819823000,45.57376919,236.24,236.13,55.66919209]
[1731819823616,46.84356919,236.24,236.13,59.90409209]
[1731819823804,45.57376919,236.2,236.13,10.0954229]
[1731819824724,45.57376919,236.2,236.13,14.3303229]
[1731819826717,45.57376919,236.2,236.13,10.0954229]
[1731819827508,46.84366919,236.24,236.15,45.57376919]
[1731819827822,45.57376919,236.22,236.13,55.66919209]
[1731819828004,45.57376919,236.24,236.13,55.66919209]
[1731819828210,45.57376919,236.24,236.15,45.57376919]
[1731819828830,45.57376919,236.22,236.13,55.66919209]
[1731819829013,45.57376919,236.2,236.13,14.3303229]
[1731819829909,8.52895643,236.33,236.16,45.57376919]
[1731819830119,45.57376919,236.35,236.26,45.57376919]
[1731819830508,45.57376919,236.31,236.22,45.57376919]
[1731819830919,45.57376919,236.29,236.2,45.57376919]
[1731819831120,45.57376919,236.27,236.18,45.57376919]
[1731819831345,45.57376919,236.25,236.16,45.57376919]
[1731819831628,45.57376919,236.25,236.14,60.39536919]
[1731819831835,45.57376919,236.23,236.14,56.16066919]
[1731819832032,45.57376919,236.17,236.08,56.63117409]
[1731819832330,45.57376919,236.23,236.14,45.57376919]
[1731819832725,45.57376919,236.25,236.16,45.57376919]
[1731819832912,45.57376919,236.25,236.16,49.80806919]
[1731819833112,45.57376919,236.22,236.14,10.5866]
[1731819833308,45.57376919,236.22,236.13,45.57376919]
[1731819833614,45.57376919,236.22,236.08,11.0574049]
[1731819833615,45.57376919,236.18,236.09,49.80926919]
[1731819833837,45.57376919,236.18,236.09,45.57376919]
[1731819834024,45.57376919,236.18,236.08,0.4682049]
[1731819834025,45.57376919,236.1,236.08,0.4682049]
[1731819834332,45.57376919,236.12,236.08,0.4682049]
[1731819835132,45.57376919,236.1,236.08,0.4682049]
[1731819835311,45.57376919,236.15,236.08,0.4682049]
[1731819835515,78.73836919,236.17,236.08,46.04197409]
[1731819835822,45.57376919,236.13,236.08,0.4682049]
[1731819836025,45.57376919,236.15,236.08,0.4682049]
[1731819836230,45.57376919,236.13,236.08,0.4682049]
[1731819836924,1.2705,236.12,236.08,0.4682049]
[1731819837230,45.57376919,236.11,236.08,0.4682049]
[1731819837818,1.2705,236.12,236.08,0.4682049]
[1731819838439,31.8944,236.17,236.1,45.57376919]
[1731819838735,45.57376919,236.22,236.12,45.57376919]
[1731819838910,45.57376919,236.22,236.14,45.57376919]
[1731819839114,45.57376919,236.22,236.12,45.57376919]
[1731819839331,45.57376919,236.19,236.1,45.57376919]
[1731819839737,46.84376919,236.21,236.1,45.57376919]
[1731819840039,3.1745,236.26,236.08,4.7039049]
[1731819840040,45.57376919,236.23,236.12,45.57376919]
[1731819840246,45.57376919,236.21,236.12,45.57376919]
[1731819840819,45.57376919,236.21,236.1,45.57376919]
[1731819841043,45.57376919,236.17,236.08,46.04197409]
[1731819841333,1.2703,236.16,236.08,0.4682049]
[1731819842124,45.57376919,236.15,236.08,0.4682049]
[1731819842447,45.57376919,236.11,236.08,0.4682049]